fUST/lending_fUST_20260110
["ID","MTS","AMOUNT","RATE_DAILY","PERIOD"]
[401231936,1768058413908,-500.0,9.899e-05,2]
[401231937,1768058413941,-500.0,9.899e-05,2]
[401231938,1768058413976,-500.0,9.899e-05,2]
[401231939,1768058414009,-485.69119867,9.899e-05,2]
[401231940,1768058414044,-104.56417922,9.899e-05,2]
[401231941,1768058414558,-293.72936223,9.899e-05,2]
[401231942,1768058414576,-101.70645855,9.899e-05,2]
[401231943,1768058414586,-398.29354145,9.899e-05,2]
[401231944,1768058414604,-101.70645855,9.899e-05,2]
[401231945,1768058414616,-383.98474012,9.899e-05,2]
[401231946,1768058414637,-134.51704124,9.899e-05,2]
[401231947,1768058414647,-365.48295876,9.899e-05,2]
[401231948,1768058417096,-249.69722166,9.899e-05,2]
[401231949,1768058417130,-500.0,9.899e-05,2]
[401231950,1768058417164,-500.0,9.899e-05,2]
[401231951,1768058417197,-500.0,9.899e-05,2]
[401231952,1768058417231,-500.0,9.899e-05,2]
[401231953,1768058417264,-500.0,9.899e-05,2]
[401231954,1768058417297,-500.0,9.899e-05,2]
[401231955,1768058417331,-500.0,9.899e-05,2]
[401231956,1768058417361,-457.59293066,9.899e-05,2]
[401231957,1768058417394,-500.0,9.899e-05,2]
[401231958,1768058417428,-85.42969536,9.899e-05,2]
[401231959,1768058417734,-414.57030464,9.899e-05,2]
[401231960,1768058417770,-500.0,9.899e-05,2]
[401231961,1768058417806,-500.0,9.899e-05,2]
[401231962,1768058417841,-500.0,9.899e-05,2]
[401231963,1768058417875,-500.0,9.899e-05,2]
[401231964,1768058417911,-500.0,9.899e-05,2]
[401231965,1768058417947,-500.0,9.899e-05,2]
[401231966,1768058417982,-500.0,9.899e-05,2]
[401231967,1768058418017,-500.0,9.899e-05,2]
[401231968,1768058418052,-500.0,9.899e-05,2]
[401231969,1768058418142,-500.0,9.899e-05,2]
[401231970,1768058418177,-500.0,9.899e-05,2]
[401231971,1768058418211,-500.0,9.899e-05,2]
[401231972,1768058418247,-500.0,9.899e-05,2]
[401231973,1768058418283,-644.01745149,9.899e-05,2]
[401231974,1768058418320,-500.0,9.899e-05,2]
[401231975,1768058418357,-500.0,9.899e-05,2]
[401231976,1768058418393,-500.0,9.899e-05,2]
[401231977,1768058418431,-500.0,9.899e-05,2]
[401231978,1768058418468,-211.97509702,9.899e-05,2]
[401231979,1768058418963,-288.02490298,9.899e-05,2]
[401231980,1768058418975,-112.29163459,9.899e-05,2]
[401231981,1768058418995,-387.70836541,9.899e-05,2]
[401231982,1768058419004,-112.29163459,9.899e-05,2]
[401232115,1768058880931,353.31,0.00030137,120]
[401232118,1768058908731,-219.062,9.702e-05,2]
[401232119,1768058908774,-246.0,9.897e-05,2]
[401232120,1768058908811,-300.0,9.898e-05,2]
[401232121,1768058908847,-300.0,9.898e-05,2]
[401232122,1768058908882,-155.0,9.898e-05,2]
[401232123,1768058908919,-1200.0,9.898e-05,2]
[401232124,1768058908956,-300.0,9.898e-05,2]
[401232125,1768058908992,-500.0,9.899e-05,2]
[401232126,1768058909340,-3559.886,9.899e-05,2]
[401232127,1768058909482,-2380.27269273,9.899e-05,2]
[401232128,1768058909520,-387.70836541,9.899e-05,2]
[401232129,1768058909558,-500.0,9.899e-05,2]
[401232130,1768058909599,-500.0,9.899e-05,2]
[401232131,1768058909637,-500.0,9.899e-05,2]
[401232132,1768058909675,-500.0,9.899e-05,2]
[401232133,1768058909820,-464.04788372,9.899e-05,2]
[401232134,1768058909860,-35.95211628,9.899e-05,2]
[401232135,1768058909896,-500.0,9.899e-05,2]
[401232136,1768058909932,-500.0,9.899e-05,2]
[401232137,1768058909967,-500.0,9.899e-05,2]
[401232138,1768058910002,-500.0,9.899e-05,2]
[401232139,1768058910039,-500.0,9.899e-05,2]
[401232140,1768058910073,-500.0,9.899e-05,2]
[401232141,1768058910107,-500.0,9.899e-05,2]
[401232142,1768058910143,-500.0,9.899e-05,2]
[401232143,1768058910178,-500.0,9.899e-05,2]
[401232144,1768058910212,-428.10576744,9.899e-05,2]
[401232145,1768058910301,-71.89423256,9.899e-05,2]
[401232146,1768058910341,-500.0,9.899e-05,2]
[401232147,1768058910379,-563.69100726,9.899e-05,2]
[401232148,1768058910417,-500.0,9.899e-05,2]
[401232149,1768058910457,-500.0,9.899e-05,2]
[401232150,1768058910496,-500.0,9.899e-05,2]
[401232151,1768058910535,-500.0,9.899e-05,2]
[401232152,1768058910573,-500.0,9.899e-05,2]
[401232153,1768058910611,-500.0,9.899e-05,2]
[401232154,1768058910648,-500.0,9.899e-05,2]
[401232155,1768058910686,-228.83952036,9.899e-05,2]
[401232156,1768058910807,-271.16047964,9.899e-05,2]
[401232157,1768058910843,-500.0,9.899e-05,2]
[401232158,1768058910880,-500.0,9.899e-05,2]
[401232159,1768058910916,-500.0,9.899e-05,2]
[401232160,1768058910953,-500.0,9.899e-05,2]
[401232161,1768058910989,-500.0,9.899e-05,2]
[401232162,1768058911026,-206.36910072,9.899e-05,2]
[401232163,1768058911063,-500.0,9.899e-05,2]
[401232164,1768058911100,-500.0,9.899e-05,2]
[401232165,1768058911137,-500.0,9.899e-05,2]
[401232166,1768058911175,-500.0,9.899e-05,2]
[401232167,1768058911347,-246.66,9.899e-05,2]
[401232168,1768058911946,-96.3947122,9.899e-05,2]
[401232169,1768058911966,-44.95083928,9.899e-05,2]
[401232170,1768058911992,-246.66,9.899e-05,2]
[401232171,1768058912013,-9506.69,9.899e-05,2]
[401232172,1768058912138,-6283.93429972,9.899e-05,2]
[401232173,1768058912148,-500.0,9.899e-05,2]
[401232174,1768058912158,-500.0,9.899e-05,2]
[401232175,1768058912168,-500.0,9.899e-05,2]
[401232176,1768058912178,-500.0,9.899e-05,2]
[401232177,1768058912188,-341.10701219,9.899e-05,2]
[401232178,1768058912198,-500.0,9.899e-05,2]
[401232179,1768058912207,-500.0,9.899e-05,2]
[401232180,1768058912218,-253.5393289,9.899e-05,2]
[401232181,1768058912228,-121.42935919,9.899e-05,2]
[401232182,1768058915692,-378.57064081,9.899e-05,2]
[401232183,1768058915728,-500.0,9.899e-05,2]
[401232184,1768058915766,-500.0,9.899e-05,2]
[401232185,1768058915801,-500.0,9.899e-05,2]
[401232186,1768058915836,-500.0,9.899e-05,2]
[401232187,1768058915871,-500.0,9.899e-05,2]
[401232188,1768058915906,-500.0,9.899e-05,2]
[401232189,1768058915940,-500.0,9.899e-05,2]
[401232190,1768058915975,-500.0,9.899e-05,2]
[401232191,1768058916010,-500.0,9.899e-05,2]
[401232192,1768058916229,-242.86871838,9.899e-05,2]
[401232193,1768058916269,-257.13128162,9.899e-05,2]
[401232194,1768058916305,-500.0,9.899e-05,2]
[401232195,1768058916341,-500.0,9.899e-05,2]
[401232196,1768058916378,-500.0,9.899e-05,2]
[401232197,1768058916416,-500.0,9.899e-05,2]
[401232198,1768058916453,-382.77719343,9.899e-05,2]
[401232199,1768058916491,-500.0,9.899e-05,2]
[401232200,1768058916527,-500.0,9.899e-05,2]
[401232201,1768058916566,-500.0,9.899e-05,2]
[401232202,1768058916605,-500.0,9.899e-05,2]
[401232203,1768058916640,-220.1930499,9.899e-05,2]
[401232204,1768058916868,-279.8069501,9.899e-05,2]
[401232205,1768058918740,1766.46031538,8.9e-05,2]
[401232206,1768058922320,-500.0,9.899e-05,2]
[401232207,1768058922357,-500.0,9.899e-05,2]
[401232208,1768058922394,-500.0,9.899e-05,2]
[401232209,1768058922430,-500.0,9.899e-05,2]
[401232210,1768058922465,-500.0,9.899e-05,2]
[401232211,1768058922501,-500.0,9.899e-05,2]
[401232212,1768058922539,-500.0,9.899e-05,2]
[401232213,1768058922576,-500.0,9.899e-05,2]
[401232214,1768058922612,-500.0,9.899e-05,2]
[401232215,1768058922647,-500.0,9.899e-05,2]
[401232216,1768058922851,-500.0,9.899e-05,2]
[401232217,1768058922886,-500.0,9.899e-05,2]
[401232218,1768058922921,-500.0,9.899e-05,2]
[401232219,1768058922966,-500.0,9.899e-05,2]
[401232220,1768058923008,-500.0,9.899e-05,2]
[401232221,1768058923043,-500.0,9.899e-05,2]
[401232222,1768058923078,-485.56911988,9.899e-05,2]
[401232223,1768058923114,-500.0,9.899e-05,2]
[401232224,1768058923150,-500.0,9.899e-05,2]
[401232225,1768058923185,-500.0,9.899e-05,2]
[401232226,1768058923274,-500.0,9.899e-05,2]
[401232227,1768058923311,-500.0,9.899e-05,2]
[401232228,1768058923346,-351.6462155,9.899e-05,2]
[401232229,1768058923383,-500.0,9.899e-05,2]
[401232230,1768058923420,-500.0,9.899e-05,2]
[401232231,1768058923458,-500.0,9.899e-05,2]
[401232232,1768058923495,-500.0,9.899e-05,2]
[401232233,1768058923531,-305.23142681,9.899e-05,2]
[401232234,1768058923568,-500.0,9.899e-05,2]
[401232235,1768058923606,-500.0,9.899e-05,2]
[401232236,1768058923645,-186.25471538,9.899e-05,2]
[401232237,1768058924443,-313.74528462,9.899e-05,2]
[401232238,1768058924454,-66.78269112,9.899e-05,2]
[401232251,1768058995873,204.47,6.51e-05,2]
[401232252,1768058996362,408.94,6.82e-05,2]
[401232253,1768058996747,613.41,7.13e-05,2]
[401232254,1768058997263,817.88,7.44e-05,2]
[401232255,1768058997783,1022.35,7.75e-05,2]
[401232256,1768058998553,1226.82,8.06e-05,2]
[401232257,1768058999077,1431.29,8.37e-05,2]
[401232258,1768058999925,1635.76,8.68e-05,2]
[401232259,1768059000407,1840.23,8.99e-05,2]
[401232289,1768059031673,-465.60265351,9.299e-05,2]
[401232290,1768059031685,-909.76404683,9.299e-05,2]
[401232291,1768059031696,-669.33329966,9.299e-05,2]
[401232292,1768059031706,-550.0,9.299e-05,2]
[401232293,1768059031716,-300.0,9.798e-05,2]
[401232294,1768059031725,-300.0,9.798e-05,2]
[401232295,1768059031734,-300.0,9.798e-05,2]
[401232296,1768059031743,-480.66670034,9.798e-05,2]
[401232297,1768059031754,-719.33329966,9.798e-05,2]
[401232298,1768059031762,-2030.66670034,9.799e-05,2]
[401232299,1768059031773,-3621.50184145,9.799e-05,2]
[401232312,1768059037721,-3065.74439699,9.799e-05,2]
[401232313,1768059037735,-991282.08706122,9.799e-05,2]
[401232314,1768059037746,-433.21730888,9.899e-05,2]
[401232315,1768059037757,-500.0,9.899e-05,2]
[401232316,1768059037767,-500.0,9.899e-05,2]
[401232317,1768059037778,-300.0,9.899e-05,2]
[401232318,1768059037787,-3094.256503,9.899e-05,2]
[401232319,1768059037801,-2508.9981214,9.899e-05,2]
[401232320,1768059037815,-500.0,9.899e-05,2]
[401232322,1768059037824,-500.0,9.899e-05,2]
[401232324,1768059037833,-500.0,9.899e-05,2]
[401232325,1768059037843,-500.0,9.899e-05,2]
[401232326,1768059037853,-500.0,9.899e-05,2]
[401232327,1768059037863,-500.0,9.899e-05,2]
[401232328,1768059037872,-422.47281074,9.899e-05,2]
[401232329,1768059037881,-500.0,9.899e-05,2]
[401232330,1768059037891,-500.0,9.899e-05,2]
[401232331,1768059037900,-500.0,9.899e-05,2]
[401232332,1768059037910,-500.0,9.899e-05,2]
[401232333,1768059037919,-500.0,9.899e-05,2]
[401232334,1768059037928,-500.0,9.899e-05,2]
[401232335,1768059037938,-163.04126209,9.899e-05,2]
[401232336,1768059037947,-500.0,9.899e-05,2]
[401232337,1768059037958,-417.67992504,9.899e-05,2]
[401232338,1768059037968,-10494.8322975,9.899e-05,2]
[401232339,1768059037977,-159518.0,0.0001,2]
[401232340,1768059037986,-3304.54148946,0.0001,2]
[401232341,1768059037995,-9578.50362218,0.0001,2]
[401232342,1768059038004,-151.0,0.0001,2]
[401232343,1768059038013,-158.67691951,0.0001,2]
[401232344,1768059038021,-500.0,0.00010097,2]
[401232345,1768059038030,-600.0,0.00010097,2]
[401232346,1768059038039,-300.0,0.00010097,2]
[401232347,1768059038047,-300.0,0.00010097,2]
[401232348,1768059038056,-300.0,0.00010097,2]
[401232349,1768059038065,-300.0,0.00010097,2]
[401232350,1768059038074,-300.0,0.00010097,2]
[401232351,1768059038083,-300.0,0.00010097,2]
[401232352,1768059038091,-300.0,0.00010097,2]
[401232353,1768059038100,-300.0,0.00010097,2]
[401232354,1768059038108,-300.0,0.00010097,2]
[401232355,1768059038116,-300.0,0.00010097,2]
[401232356,1768059038126,-300.0,0.00010097,2]
[401232357,1768059038135,-300.0,0.00010097,2]
[401232358,1768059038144,-300.0,0.00010097,2]
[401232359,1768059038153,-300.0,0.00010097,2]
[401232360,1768059038163,-300.0,0.00010097,2]
[401232361,1768059038172,-246.66,0.00010173,2]
[401232362,1768059038182,-500.0,0.00010371,2]
[401232363,1768059038193,-246.66,0.00010447,2]
[401232364,1768059038202,-319.54093411,0.00010645,2]
[401232365,1768059038212,-373.0,0.00010778,2]
[401232366,1768059038221,-420.0,0.00010778,2]
[401232367,1768059038230,-1680.0,0.00010778,2]
[401232368,1768059038240,-720.0,0.00011107,2]
[401232369,1768059038250,-3609.9402696,0.00011154,2]
[401232370,1768059038260,-2341.7136112,0.00011178,2]
[401232371,1768059038270,-805.4865505,0.00011434,2]
[401232372,1768059038279,-522.5069331,0.00011463,2]
[401232373,1768059038289,-177.0,0.000118,2]
[401232374,1768059038299,-587.0,0.00011855,2]
[401232375,1768059038309,-2351.0,0.00011855,2]
[401232376,1768059038319,-864.0,0.00012217,2]
[401232377,1768059038329,-278.74,0.00012329,2]
[401232378,1768059038339,-232.28,0.00012329,2]
[401232379,1768059038348,-193.57,0.00012329,2]
[401232380,1768059038358,-161.31,0.00012329,2]
[401232381,1768059038368,-806.56,0.00012329,2]
[401232382,1768059038378,-11515.01,0.00012329,2]
[401232383,1768059038388,-9595.84,0.00012329,2]
[401232384,1768059038398,-7996.54,0.00012329,2]
[401232385,1768059038407,-6663.78,0.00012329,2]
[401232386,1768059038417,-5553.15,0.00012329,2]
[401232387,1768059038426,-4627.63,0.00012329,2]
[401232388,1768059038438,-3856.35,0.00012329,2]
[401232389,1768059038448,-509.95502301,0.00012329,2]
[401232390,1768059038458,-3622.49329483,0.000129,2]
[401232391,1768059038467,-250.0,0.00012969,2]
[401232392,1768059038477,-245.94179051,0.00013,3]
[401232393,1768059038487,-823.0,0.00013041,2]
[401232394,1768059038497,-3292.0,0.00013041,2]
[401232395,1768059038507,-7478.44351855,0.00013129,2]
[401232396,1768059038517,-1000.0,0.00013439,2]
[401232397,1768059038527,-329671.051411,0.00013439,2]
[401232398,1768059038536,-3622.49329481,0.00013646,2]
[401232399,1768059038546,-204.0,0.000138,2]
[401232400,1768059038556,-1152.0,0.00014345,2]
[401232401,1768059038566,-4609.0,0.00014345,2]
[401232402,1768059038576,-1000.0,0.00014783,2]
[401232403,1768059038586,-244.0,0.00014783,2]
[401232404,1768059038597,-1613.0,0.0001578,2]
[401232405,1768059038607,-379.0,0.0001578,2]
[401232406,1768059038616,-231.0,0.000158,2]
[401232407,1768059038626,-1000.0,0.00016261,2]
[401232408,1768059038635,-492.0,0.00016261,2]
[401232409,1768059038645,-9648.59267114,0.00017,2]
[401232410,1768059038655,-2167.0,0.00017358,2]
[401232411,1768059038665,-3622.49329481,0.00017494,2]
[401232412,1768059038676,-258.0,0.000178,2]
[401232413,1768059038687,-1000.0,0.00017887,2]
[401232414,1768059038697,-791.0,0.00017887,2]
[401232415,1768059038706,-2401.98306739,0.00019445,2]
[401232416,1768059038716,-1000.0,0.00019676,2]
[401232417,1768059038726,-1000.0,0.00019676,2]
[401232418,1768059038735,-6834.71,0.000197,2]
[401232419,1768059038745,-285.0,0.000198,2]
[401232420,1768059038754,-3622.49329481,0.00021341,2]
[401232421,1768059038763,-165.28,0.000214,2]
[401232422,1768059038773,-261.99099495,0.00021414,2]
[401232423,1768059038782,-1000.0,0.00021644,10]
[401232424,1768059038791,-1000.0,0.00021644,10]
[401232425,1768059038803,-579.0,0.00021644,10]
[401232426,1768059038812,-312.0,0.000218,2]
[401232427,1768059038822,-5058.79910613,0.00023487,2]
[401232428,1768059038832,-339.0,0.000238,2]
[401232429,1768059038843,-1000.0,0.00023808,10]
[401232430,1768059038854,-1000.0,0.00023808,10]
[401232431,1768059038864,-1000.0,0.00023808,10]
[401232432,1768059038875,-1046.9160158,0.00024422,2]
[401232433,1768059038884,-211.0,0.00024466,13]
[401232434,1768059038894,-2712.34791911,0.00025188,2]
[401232435,1768059038904,-3622.49329481,0.00025188,2]
[401232436,1768059038914,-252.70938086,0.000258,2]
[401232437,1768059038924,-1000.0,0.00026189,30]
[401232438,1768059038934,-1000.0,0.00026189,30]
[401232439,1768059038944,-595.0,0.00026189,30]
[401232440,1768059038953,-1500.0,0.00027,2]
[401232441,1768059038963,-155.0,0.00028849,31]
[401232442,1768059038972,-3622.49329481,0.00029035,2]
[401232443,1768059038983,-250.0,0.0002929,2]
[401232444,1768059038993,-268.92290975,0.0002929,2]
[401232445,1768059039003,-250.0,0.0002929,2]
[401232446,1768059039013,-250.0,0.0002929,2]
[401232447,1768059039023,-250.0,0.0002929,2]
[401232448,1768059039033,-250.0,0.0002929,2]
[401232449,1768059039043,-151.0,0.00030137,14]
[401232450,1768059039052,-999.0,0.00032876,120]
[401232451,1768059039062,-3622.49329481,0.00032883,2]
[401232452,1768059039072,-1622.33143794,0.0003318,2]
[401232453,1768059039081,-151.6053793,0.000332,117]
[401232454,1768059039091,-151.6053793,0.000332,117]
[401232455,1768059039101,-151.6053793,0.000332,117]
[401232456,1768059039110,-210.0,0.00033699,5]
[401232457,1768059039119,-161.0,0.00033781,63]
[401232458,1768059039246,-324.5,0.00033868,30]
[401232459,1768059039258,-999.0,0.00033972,120]
[401232460,1768059039267,-270.0,0.00034521,5]
[401232461,1768059039277,-219.062,0.00034777,40]
[401232462,1768059039287,-313.8868207,0.00035,120]
[401232463,1768059039296,-999.0,0.00035068,120]
[401232464,1768059039306,-6834.71,0.000351,14]
[401232465,1768059039317,-330.0,0.00035342,5]
[401232467,1768059039327,-532.55,0.00035616,30]
[401232468,1768059039336,-163.0,0.000358,120]
[401232469,1768059039346,-2779.62860416,0.00035937,4]
[401232470,1768059039356,-20844.54809533,0.00036,120]
[401232471,1768059039365,-731.96785671,0.00036164,120]
[401232472,1768059039375,-190.020001,0.00036164,5]
[401232473,1768059039384,-634.76131851,0.00036323,5]
[401232474,1768059039395,-237.68947624,0.00036424,15]
[401232475,1768059039406,-291.54632792,0.00036424,15]
[401232476,1768059039416,-500.0,0.00036424,15]
[401232477,1768059039427,-274.04461191,0.00036424,15]
[401232478,1768059039437,-175.22606543,0.00036424,15]
[401232479,1768059039447,-210.4918933,0.00036424,15]
[401232480,1768059039457,-153.0,0.000365,25]
[401232481,1768059039466,-500.88241622,0.00036561,15]
[401232482,1768059039476,-175114.45688623,0.000366,10]
[401232483,1768059039485,-500.0,0.000366,13]
[401232484,1768059039495,-503.55820334,0.00036612,2]
[401232485,1768059039505,-503.55820326,0.00036625,2]
[401232486,1768059039515,-503.55820326,0.00036638,2]
[401232487,1768059039524,-503.55820326,0.00036651,2]
[401232488,1768059039534,-503.55820326,0.00036664,2]
[401232489,1768059039544,-356.44612631,0.00036675,2]
[401232490,1768059039553,-503.55820326,0.00036678,2]
[401232491,1768059039562,-503.55820326,0.00036691,2]
[401232492,1768059039572,-5000.44,0.000367,2]
[401232493,1768059039581,-503.55820326,0.00036704,2]
[401232494,1768059039592,-250.0,0.00036711,30]
[401232495,1768059039602,-151.0,0.00036711,30]
[401232496,1768059039611,-250.0,0.00036711,30]
[401232497,1768059039620,-307.841897,0.00036712,31]
[401232498,1768059039630,-307.841897,0.00036712,31]
[401232499,1768059039639,-307.841897,0.00036712,31]
[401232500,1768059039648,-307.841897,0.00036712,31]
[401232501,1768059039657,-307.841897,0.00036712,31]
[401232502,1768059039667,-307.841897,0.00036712,31]
[401232503,1768059039676,-307.841897,0.00036712,31]
[401232504,1768059039686,-307.841897,0.00036712,31]
[401232505,1768059039696,-307.841897,0.00036712,31]
[401232506,1768059039706,-307.841897,0.00036712,31]
[401232507,1768059039715,-307.841897,0.00036712,31]
[401232508,1768059039724,-307.841897,0.00036712,31]
[401232509,1768059039734,-307.841897,0.00036712,31]
[401232510,1768059039743,-307.841897,0.00036712,31]
[401232511,1768059039753,-307.841897,0.00036712,31]
[401232512,1768059039762,-307.841897,0.00036712,31]
[401232513,1768059039771,-307.841897,0.00036712,31]
[401232514,1768059039780,-307.841897,0.00036712,31]
[401232515,1768059039790,-307.841897,0.00036712,31]
[401232516,1768059039802,-307.841896,0.00036712,31]
[401232517,1768059039811,-16189.62,0.00036712,30]
[401232518,1768059039820,-16189.62,0.00036712,30]
[401232519,1768059039830,-16189.62,0.00036712,30]
[401232520,1768059039839,-16189.62,0.00036712,30]
[401232522,1768059039849,-16189.62,0.00036712,30]
[401232523,1768059039858,-16189.62,0.00036712,30]
[401232525,1768059039868,-16189.62,0.00036712,30]
[401232527,1768059039878,-16189.62,0.00036712,30]
[401232529,1768059039887,-16189.62,0.00036712,30]
[401232531,1768059039896,-16189.62,0.00036712,30]
[401232533,1768059039907,-16189.62,0.00036712,30]
[401232535,1768059039918,-16189.62,0.00036712,30]
[401232537,1768059039927,-2479.36,0.00036712,30]
[401232539,1768059039938,-16189.62,0.00036712,30]
[401232541,1768059039947,-2479.36,0.00036712,30]
[401232543,1768059039957,-2479.36,0.00036712,30]
[401232545,1768059039965,-2479.36,0.00036712,30]
[401232547,1768059039974,-2479.36,0.00036712,30]
[401232549,1768059039984,-2479.36,0.00036712,30]
[401232551,1768059039993,-2479.36,0.00036712,30]
[401232553,1768059040004,-2479.36,0.00036712,30]
[401232554,1768059040013,-2479.36,0.00036712,30]
[401232557,1768059040023,-16189.62,0.00036712,30]
[401232558,1768059040034,-2479.36,0.00036712,30]
[401232561,1768059040044,-16189.62,0.00036712,30]
[401232562,1768059040054,-2479.36,0.00036712,30]
[401232565,1768059040065,-16189.62,0.00036712,30]
[401232567,1768059040075,-2479.36,0.00036712,30]
[401232569,1768059040085,-2479.36,0.00036712,30]
[401232570,1768059040096,-2479.36,0.00036712,30]
[401232573,1768059040105,-2479.36,0.00036712,30]
[401232575,1768059040116,-2479.36,0.00036712,30]
[401232576,1768059040126,-2479.36,0.00036712,30]
[401232579,1768059040136,-2479.36,0.00036712,30]
[401232580,1768059040145,-2479.36,0.00036712,30]
[401232582,1768059040154,-2479.36,0.00036712,30]
[401232584,1768059040164,-16189.62,0.00036712,30]
[401232586,1768059040174,-2479.36,0.00036712,30]
[401232588,1768059040183,-16189.62,0.00036712,30]
[401232590,1768059040193,-2479.36,0.00036712,30]
[401232593,1768059040202,-16189.62,0.00036712,30]
[401232594,1768059040212,-2479.36,0.00036712,30]
[401232597,1768059040222,-16189.62,0.00036712,30]
[401232599,1768059040232,-2479.42,0.00036712,30]
[401232601,1768059040241,-16189.62,0.00036712,30]
[401232603,1768059040250,-16189.62,0.00036712,30]
[401232604,1768059040260,-16189.62,0.00036712,30]
[401232606,1768059040269,-16189.70100427,0.00036712,30]
[401232609,1768059040279,-2192.87,0.00036712,30]
[401232611,1768059040289,-2192.87,0.00036712,30]
[401232613,1768059040299,-2192.87,0.00036712,30]
[401232615,1768059040309,-2192.87,0.00036712,30]
[401232617,1768059040319,-2192.87,0.00036712,30]
[401232619,1768059040329,-2192.87,0.00036712,30]
[401232621,1768059040340,-2192.87,0.00036712,30]
[401232623,1768059040350,-2192.87,0.00036712,30]
[401232625,1768059040360,-2192.87,0.00036712,30]
[401232627,1768059040369,-2192.87,0.00036712,30]
[401232629,1768059040379,-2192.87,0.00036712,30]
[401232631,1768059040390,-2192.87,0.00036712,30]
[401232633,1768059040399,-2192.87,0.00036712,30]
[401232635,1768059040408,-2192.87,0.00036712,30]
[401232637,1768059040418,-2192.87,0.00036712,30]
[401232639,1768059040427,-2192.87,0.00036712,30]
[401232641,1768059040436,-2192.87,0.00036712,30]
[401232643,1768059040447,-2192.87,0.00036712,30]
[401232645,1768059040457,-2192.87,0.00036712,30]
[401232647,1768059040466,-2192.87,0.00036712,30]
[401232649,1768059040476,-2192.87,0.00036712,30]
[401232651,1768059040486,-2192.87,0.00036712,30]
[401232653,1768059040495,-2192.87,0.00036712,30]
[401232655,1768059040504,-2192.89,0.00036712,30]
[401232657,1768059040514,-4887.27,0.00036712,30]
[401232659,1768059040523,-4887.27,0.00036712,30]
[401232661,1768059040532,-4887.27,0.00036712,30]
[401232663,1768059040542,-4887.27,0.00036712,30]
[401232665,1768059040551,-4887.27,0.00036712,30]
[401232667,1768059040560,-4887.27,0.00036712,30]
[401232669,1768059040570,-4887.27,0.00036712,30]
[401232671,1768059040579,-4887.27,0.00036712,30]
[401232673,1768059040588,-2195.79,0.00036712,30]
[401232675,1768059040598,-2195.79,0.00036712,30]
[401232677,1768059040608,-2195.79,0.00036712,30]
[401232679,1768059040617,-2195.79,0.00036712,30]
[401232681,1768059040627,-26257.46,0.00036712,30]
[401232683,1768059040637,-2195.79,0.00036712,30]
[401232685,1768059040647,-26257.46,0.00036712,30]
[401232687,1768059040657,-4887.27,0.00036712,30]
[401232689,1768059040666,-2195.79,0.00036712,30]
[401232691,1768059040676,-26257.46,0.00036712,30]
[401232693,1768059040686,-4887.27,0.00036712,30]
[401232695,1768059040696,-2195.79,0.00036712,30]
[401232697,1768059040706,-26257.46,0.00036712,30]
[401232699,1768059040715,-4887.27,0.00036712,30]
[401232701,1768059040724,-26257.46,0.00036712,30]
[401232703,1768059040734,-2195.79,0.00036712,30]
[401232705,1768059040743,-4887.27,0.00036712,30]
[401232707,1768059040752,-26257.46,0.00036712,30]
[401232709,1768059040761,-2195.79,0.00036712,30]
[401232711,1768059040771,-4887.27,0.00036712,30]
[401232713,1768059040781,-4887.27,0.00036712,30]
[401232715,1768059040790,-4887.27,0.00036712,30]
[401232717,1768059040801,-4887.27,0.00036712,30]
[401232719,1768059040811,-4887.27,0.00036712,30]
[401232722,1768059040821,-26257.46,0.00036712,30]
[401232723,1768059040830,-2195.79,0.00036712,30]
[401232725,1768059040840,-4887.27,0.00036712,30]
[401232727,1768059040849,-2195.79,0.00036712,30]
[401232729,1768059040858,-4887.27,0.00036712,30]